bitfinex/quotes_BTCUSD_20250730
["timestamp","ask_amount","ask_price","bid_price","bid_amount"]
[1753905769704,5.26167285,117240.0,117230.0,0.03304862]
[1753905769921,0.73839085,117240.0,117230.0,4.862e-05]
[1753905770161,0.34,117240.0,117230.0,0.06444862]
[1753905770378,0.01798334,117270.0,117250.0,0.033]
[1753905770583,5.363282,117260.0,117250.0,0.033]
[1753905770793,0.13652,117260.0,117250.0,0.033]
[1753905770997,5.73919285,117260.0,117250.0,0.033]
[1753905771224,0.34,117250.0,117240.0,0.033]
[1753905771723,0.47668,117250.0,117240.0,0.033]
[1753905771929,0.05678167,117270.0,117260.0,0.033]
[1753905771930,0.01698334,117270.0,117260.0,0.033]
[1753905772150,0.49382334,117270.0,117260.0,0.033]
[1753905772362,0.35698334,117270.0,117260.0,0.033]
[1753905772569,0.35698334,117270.0,117260.0,0.0644]
[1753905772983,0.0002,117270.0,117260.0,0.54726815]
[1753905773624,0.0002,117270.0,117260.0,0.54626815]
[1753905774036,0.0002,117270.0,117260.0,0.1488773]
[1753905774312,0.0002,117270.0,117260.0,0.15100931]
[1753905774526,0.0002,117270.0,117260.0,0.75407263]
[1753905774742,0.0002,117270.0,117260.0,1.10938964]
[1753905775168,0.0002,117270.0,117260.0,1.11038964]
[1753905775801,0.0002,117270.0,117260.0,1.11338964]
[1753905776457,0.0002,117270.0,117260.0,1.11038964]
[1753905776655,0.0002,117270.0,117260.0,1.10838964]
[1753905776858,0.0002,117270.0,117260.0,1.11538964]
[1753905778148,0.0002,117270.0,117260.0,0.1548773]
[1753905778801,0.0002,117270.0,117260.0,0.15700931]
[1753905779013,0.0002,117270.0,117260.0,0.55026815]
[1753905779492,0.0002,117270.0,117260.0,0.7323572]
[1753905779698,0.0002,117270.0,117260.0,0.74541257]
[1753905779948,0.0002,117270.0,117260.0,0.73688503]
[1753905780162,0.0002,117270.0,117260.0,0.32443844]
[1753905780620,0.0002,117270.0,117260.0,0.75694047]
[1753905781294,0.0002,117270.0,117260.0,0.77438949]
[1753905781728,0.0002,117270.0,117260.0,1.11438949]
[1753905781969,0.0002,117270.0,117260.0,0.71599864]
[1753905782190,0.0002,117270.0,117260.0,1.11438949]
[1753905783022,0.0002,117290.0,117280.0,0.61726001]
[1753905783254,0.0002,117290.0,117280.0,1.63623901]
[1753905783458,0.0002,117290.0,117280.0,1.23784816]
[1753905784232,0.0002,117290.0,117280.0,1.23789678]
[1753905784699,0.02745138,117300.0,117290.0,0.61724349]
[1753905784906,0.02745138,117300.0,117290.0,1.108637]
[1753905785542,0.02745138,117300.0,117290.0,1.133637]
[1753905786391,0.02745138,117300.0,117290.0,1.108637]
[1753905786631,0.02745138,117300.0,117290.0,1.133637]
[1753905787133,0.02745138,117300.0,117290.0,1.108637]
[1753905787341,0.02745138,117300.0,117290.0,1.12546135]
[1753905787526,0.02745138,117300.0,117290.0,1.108637]
[1753905787915,0.02745138,117300.0,117290.0,1.13381524]
[1753905788480,0.02745138,117300.0,117290.0,1.24532101]
[1753905788692,0.02745138,117300.0,117290.0,1.13381539]
[1753905788889,0.02745138,117300.0,117290.0,1.13781539]
[1753905789100,0.02745138,117300.0,117290.0,1.11563715]
[1753905789349,0.02745138,117300.0,117290.0,1.25331715]
[1753905789778,0.02745138,117300.0,117290.0,1.24931715]
[1753905790114,0.02745138,117300.0,117290.0,0.91001717]
[1753905790321,0.02745138,117300.0,117290.0,0.51162632]
[1753905790527,0.02745138,117300.0,117290.0,1.22686049]
[1753905790726,0.02745138,117300.0,117290.0,1.24391143]
[1753905790946,0.02745138,117300.0,117290.0,1.50811143]
[1753905791167,0.02745138,117300.0,117290.0,1.50807143]
[1753905791384,0.02745138,117300.0,117290.0,1.10968058]
[1753905791592,0.02745138,117300.0,117290.0,1.50807143]
[1753905791815,0.34,117350.0,117290.0,1.53384687]
[1753905792012,4.863282,117340.0,117310.0,0.0637]
[1753905792219,4.863282,117340.0,117310.0,0.2859373]
[1753905792449,4.863282,117340.0,117310.0,0.1481773]
[1753905793090,0.39839085,117330.0,117310.0,0.0844773]
[1753905793303,0.37525056,117350.0,117290.0,0.22715544]
[1753905793468,4.863282,117330.0,117300.0,0.0844773]
[1753905793687,4.863282,117330.0,117300.0,0.1175773]
[1753905793688,4.9477593,117330.0,117300.0,0.1175773]
[1753905793895,4.863282,117320.0,117290.0,0.22727544]
[1753905794109,4.863282,117320.0,117290.0,0.14335274]
[1753905794347,0.34,117310.0,117290.0,0.11025274]
[1753905794800,4.863282,117300.0,117280.0,4.862e-05]
[1753905795465,5.60167285,117290.0,117280.0,4.862e-05]
[1753905795923,5.63267285,117290.0,117280.0,4.862e-05]
[1753905796371,0.34,117290.0,117280.0,4.862e-05]
[1753905797673,4.863282,117290.0,117280.0,4.862e-05]
[1753905798612,5.26167285,117290.0,117280.0,4.862e-05]
[1753905798830,5.29407285,117290.0,117280.0,4.862e-05]
[1753905799046,4.895682,117290.0,117280.0,4.862e-05]
[1753905799259,4.863282,117290.0,117280.0,4.862e-05]
[1753905799683,4.9477593,117290.0,117280.0,4.862e-05]
[1753905799957,5.82860375,117290.0,117280.0,4.862e-05]
[1753905800166,5.80302745,117290.0,117280.0,4.862e-05]
[1753905800406,5.84605277,117290.0,117280.0,4.862e-05]
[1753905800624,6.02509674,117290.0,117280.0,4.862e-05]
[1753905800857,5.84605335,117290.0,117280.0,4.862e-05]
[1753905801332,6.01757087,117290.0,117280.0,4.862e-05]
[1753905801561,6.00904544,117290.0,117280.0,4.862e-05]
[1753905802046,6.00051979,117290.0,117280.0,4.862e-05]
[1753905802274,6.00051979,117290.0,117220.0,0.0332]
[1753905802275,0.73839085,117240.0,117220.0,0.0332]
[1753905802535,0.34,117240.0,117220.0,0.0332]
[1753905803810,4.863282,117230.0,117220.0,0.0332]
[1753905805100,4.88079692,117230.0,117220.0,0.0352]
[1753905805305,0.01751492,117230.0,117220.0,0.0332]
[1753905805748,4.863282,117230.0,117220.0,0.0372]
[1753905806187,4.86278564,117230.0,117220.0,0.0372]
[1753905807169,0.47836,117240.0,117220.0,0.0372]
[1753905807393,0.01739338,117230.0,117220.0,0.52066815]
[1753905807612,4.862786,117250.0,117230.0,0.0318]
[1753905807837,0.34,117250.0,117240.0,0.065]
[1753905808284,0.03084558,117250.0,117240.0,0.0318]
[1753905808504,0.03084558,117250.0,117240.0,0.15160967]
[1753905808722,4.862786,117260.0,117240.0,0.15160967]
[1753905808977,4.862786,117290.0,117250.0,0.065]
[1753905809200,4.862786,117280.0,117250.0,0.1162773]
[1753905809430,4.862786,117280.0,117260.0,0.0318]
[1753905809643,0.34,117280.0,117260.0,0.065]
[1753905809848,0.37118755,117280.0,117260.0,0.065]
[1753905810302,0.37118755,117280.0,117260.0,0.0332]
[1753905810751,0.03118755,117280.0,117270.0,0.065]
[1753905811178,0.34,117290.0,117270.0,0.065]
[1753905811383,0.344,117290.0,117270.0,0.065]
[1753905811603,0.37107508,117290.0,117270.0,0.065]
[1753905811814,0.41030912,117290.0,117270.0,0.0332]
[1753905812024,0.37107508,117290.0,117270.0,0.0342]
[1753905812451,0.37107508,117290.0,117270.0,0.0332]
[1753905812665,0.77046593,117290.0,117270.0,0.0332]
[1753905812902,4.862786,117280.0,117260.0,0.001]
[1753905813117,5.002106,117280.0,117260.0,0.001]
[1753905813320,0.13932,117280.0,117260.0,0.034]
[1753905813529,0.53771085,117280.0,117260.0,0.034]
[1753905813736,0.90974593,117290.0,117260.0,0.034]
[1753905813941,4.862786,117280.0,117260.0,0.034]
[1753905814657,4.862786,117280.0,117260.0,0.0654]
[1753905814902,0.001,117280.0,117260.0,0.0654]
[1753905815391,0.001,117280.0,117260.0,0.0644]
[1753905815805,0.14012,117280.0,117260.0,0.0644]
[1753905816039,0.14008,117280.0,117260.0,0.0644]
[1753905816264,0.14008,117280.0,117270.0,0.033]
[1753905817446,0.14008,117280.0,117260.0,0.0644]
[1753905817650,0.85394323,117290.0,117260.0,0.0644]
[1753905817651,0.59455238,117290.0,117260.0,0.0644]
[1753905817869,4.862786,117280.0,117260.0,0.0644]
[1753905818312,4.89180475,117280.0,117260.0,0.033]
[1753905818519,0.7674096,117280.0,117250.0,0.033]
[1753905818743,0.34,117260.0,117240.0,0.06444863]
[1753905818990,0.73839085,117250.0,117240.0,0.03304863]
[1753905819194,5.74033685,117250.0,117240.0,4.863e-05]
[1753905819410,5.341946,117250.0,117240.0,4.863e-05]
[1753905819872,5.74033685,117250.0,117240.0,4.863e-05]
[1753905820094,5.93526867,117250.0,117240.0,4.863e-05]
[1753905820348,6.54516406,117250.0,117240.0,4.863e-05]
[1753905820591,6.57016406,117250.0,117240.0,4.863e-05]
[1753905820797,6.57016406,117250.0,117240.0,0.00204863]
[1753905821019,6.00972558,117250.0,117240.0,0.00204863]
[1753905821237,1.15546829,117250.0,117240.0,0.00204863]
[1753905821441,6.57216421,117250.0,117240.0,0.00204863]
[1753905821657,6.17377336,117250.0,117240.0,0.00204863]
[1753905821896,6.19083026,117250.0,117240.0,4.863e-05]
[1753905822110,6.01172579,117250.0,117240.0,4.863e-05]
[1753905822316,6.01272579,117250.0,117240.0,4.863e-05]
[1753905822527,5.82298047,117250.0,117240.0,4.863e-05]
[1753905822739,5.97915694,117250.0,117240.0,4.863e-05]
[1753905822959,5.84522317,117250.0,117240.0,4.863e-05]
[1753905823165,5.85375137,117250.0,117240.0,4.863e-05]
[1753905823392,5.86710119,117250.0,117240.0,4.863e-05]
[1753905823608,5.32106214,117250.0,117240.0,4.863e-05]
[1753905823812,5.73650946,117250.0,117240.0,4.863e-05]
[1753905824023,6.57020222,117250.0,117240.0,4.863e-05]
[1753905824228,6.58667388,117250.0,117240.0,4.863e-05]
[1753905824508,6.77814546,117250.0,117240.0,4.863e-05]
[1753905824738,6.20636376,117250.0,117240.0,4.863e-05]
[1753905824927,6.97814546,117250.0,117240.0,4.863e-05]
[1753905825135,7.00214546,117250.0,117240.0,4.863e-05]
[1753905825340,7.00014546,117250.0,117240.0,4.863e-05]
[1753905825556,7.00314546,117250.0,117240.0,4.863e-05]
[1753905825818,7.00514546,117250.0,117240.0,4.863e-05]
[1753905826032,0.34853118,117210.0,117180.0,0.033]
[1753905826250,0.53811085,117200.0,117180.0,0.03348583]
[1753905826458,4.862786,117190.0,117180.0,0.03348583]
[1753905826677,4.862786,117190.0,117180.0,0.06488583]
[1753905827763,4.862786,117190.0,117180.0,0.03348583]
[1753905828015,4.862786,117190.0,117180.0,0.03848583]
[1753905828256,4.862786,117190.0,117180.0,0.03348583]
[1753905828753,4.862786,117190.0,117180.0,0.03948583]
[1753905828966,0.13968,117190.0,117180.0,0.07258583]
[1753905829180,0.63968,117190.0,117180.0,0.07258583]
[1753905829417,0.63968,117190.0,117180.0,0.07458583]
[1753905829693,0.20669248,117190.0,117180.0,0.07458583]
[1753905829939,0.13968,117190.0,117180.0,0.07258583]
[1753905830371,0.13968,117190.0,117180.0,0.07558583]
[1753905830801,0.47956,117190.0,117180.0,0.07558583]
[1753905831443,0.34,117190.0,117180.0,0.07558583]
[1753905832346,0.17000481,117200.0,117190.0,0.0659]
[1753905832593,0.51000481,117200.0,117190.0,0.0659]
[1753905832818,0.47956,117200.0,117190.0,0.0659]
[1753905833479,0.51040724,117200.0,117190.0,0.0659]
[1753905834317,0.37084724,117200.0,117190.0,0.0659]
[1753905834743,0.51016724,117200.0,117190.0,0.0659]
[1753905834960,0.51016724,117200.0,117190.0,0.46429085]
[1753905835163,0.51016724,117200.0,117190.0,0.0659]
[1753905835372,0.17016724,117200.0,117190.0,0.0659]
[1753905835590,0.17016724,117200.0,117190.0,0.0679]
[1753905836191,0.17016724,117200.0,117190.0,0.0659]
[1753905836427,0.03084724,117200.0,117190.0,0.0659]
[1753905836638,0.13924,117210.0,117200.0,0.0659]
[1753905836859,0.13924,117210.0,117200.0,0.54876815]
[1753905837059,0.13924,117210.0,117200.0,0.1503773]
[1753905837494,0.16942747,117210.0,117200.0,0.1503773]
[1753905838158,0.16942747,117210.0,117200.0,0.0659]
[1753905838606,0.37018747,117210.0,117200.0,0.0328]
[1753905839087,0.37018747,117210.0,117200.0,0.0358]
[1753905839088,4.862786,117210.0,117200.0,0.0358]
[1753905839730,4.862786,117210.0,117200.0,0.0328]
[1753905839979,4.862786,117210.0,117200.0,0.0358]
[1753905840422,4.862786,117240.0,117200.0,0.1533773]
[1753905840640,0.13908,117230.0,117220.0,0.0328]
[1753905840855,5.001866,117230.0,117220.0,0.0328]
[1753905841067,0.16916795,117230.0,117220.0,0.0659]
[1753905841951,0.16916795,117230.0,117220.0,0.03328583]
[1753905842397,0.16916795,117230.0,117220.0,0.03528583]
[1753905842632,0.03008795,117230.0,117220.0,0.06558583]
[1753905842842,5.76117685,117290.0,117230.0,0.0624]
[1753905843055,5.76117685,117290.0,117250.0,0.0624]
[1753905843056,5.362786,117270.0,117250.0,0.0624]
[1753905843268,5.01788338,117270.0,117260.0,0.0321]
[1753905843482,0.65509738,117270.0,117260.0,0.0624]
[1753905843708,0.01593738,117270.0,117260.0,0.0624]
[1753905844149,0.01593738,117270.0,117260.0,0.0321]
[1753905844399,0.15517738,117270.0,117260.0,0.0321]
[1753905844837,0.15517738,117270.0,117260.0,0.03214871]
[1753905845935,5.40931789,117270.0,117260.0,0.03214871]
[1753905846260,5.01788898,117270.0,117260.0,0.03214871]
[1753905846681,4.87872898,117270.0,117260.0,0.03214871]
[1753905847523,4.87872898,117270.0,117260.0,4.871e-05]
[1753905847771,4.87872898,117270.0,117260.0,0.03214871]
[1753905848398,0.5635973,117280.0,117270.0,0.0321]
[1753905848399,5.4263833,117280.0,117270.0,0.0321]
[1753905848604,5.44232234,117280.0,117270.0,0.0321]
[1753905849040,5.30320234,117280.0,117270.0,0.0321]
[1753905849244,5.38559584,117280.0,117270.0,0.0321]
[1753905850269,5.3696568,117280.0,117270.0,0.0321]
[1753905851154,5.3706568,117280.0,117270.0,0.0321]
[1753905852321,0.4254773,117280.0,117270.0,0.0321]
[1753905852527,0.501,117280.0,117270.0,0.0624]
[1753905852758,0.63968,117280.0,117270.0,0.0624]
[1753905852974,0.47968,117280.0,117270.0,0.0624]
[1753905853179,0.13918351,117280.0,117270.0,0.0624]
[1753905853979,0.97918351,117280.0,117270.0,0.0624]
[1753905854210,0.47918351,117280.0,117270.0,0.0624]
[1753905854386,0.34050351,117280.0,117270.0,0.0624]
[1753905856375,0.47898351,117280.0,117270.0,0.0624]
[1753905856578,5.94424121,117280.0,117260.0,0.03214871]
[1753905856786,4.862786,117270.0,117260.0,0.03214871]
[1753905857333,0.13844,117270.0,117260.0,0.06244871]
[1753905858305,4.862786,117270.0,117260.0,0.06244871]
[1753905859018,0.13832,117270.0,117260.0,0.06244871]
[1753905859425,0.13832,117270.0,117260.0,0.06344871]
[1753905859625,4.862786,117270.0,117260.0,0.06344871]
[1753905860348,5.2872633,117270.0,117260.0,0.00104871]
[1753905860574,5.87242014,117270.0,117260.0,0.00104871]
[1753905860808,5.3717406,117270.0,117260.0,0.00104871]
[1753905861486,5.87242014,117270.0,117260.0,0.00104871]
[1753905862332,5.3717406,117270.0,117260.0,0.00104871]
[1753905862545,5.87242014,117270.0,117260.0,0.00104871]
[1753905863652,5.78794284,117270.0,117260.0,0.00104871]
[1753905865717,5.79646951,117270.0,117260.0,0.00104871]
[1753905865923,5.78794284,117270.0,117260.0,0.00104871]
[1753905866313,5.79646951,117270.0,117260.0,0.00104871]
[1753905866544,5.78794284,117270.0,117260.0,0.00104871]
[1753905867227,5.92594284,117270.0,117260.0,0.00104871]
[1753905867890,5.4252633,117270.0,117260.0,0.00104871]
[1753905868179,5.92594284,117270.0,117260.0,0.00104871]
[1753905868591,1.06315684,117270.0,117260.0,0.00104871]
[1753905868812,5.82384624,117270.0,117260.0,0.00104871]
[1753905869242,5.4252633,117270.0,117260.0,0.00104871]
[1753905869674,5.5097406,117270.0,117260.0,0.00104871]
[1753905870518,5.340786,117270.0,117260.0,0.03304871]
[1753905870741,5.340786,117270.0,117260.0,0.06304871]
[1753905870742,5.202786,117270.0,117260.0,0.06304871]
[1753905870960,0.47772,117270.0,117260.0,0.06304871]
[1753905874264,0.34,117270.0,117260.0,0.06304871]
[1753905874692,0.47756,117270.0,117260.0,0.06304871]
[1753905874902,0.34,117270.0,117260.0,0.06304871]
[1753905875116,0.47752,117270.0,117260.0,0.06304871]
[1753905875962,0.5619973,117270.0,117260.0,0.06304871]
[1753905876179,5.90784354,117270.0,117260.0,0.00356871]
[1753905876636,5.5092606,117270.0,117260.0,0.00356871]
[1753905876848,5.43812946,117270.0,117260.0,0.06676871]
[1753905877679,5.35365216,117270.0,117260.0,0.06676871]
[1753905877921,5.340306,117270.0,117260.0,0.06676871]
[1753905880086,0.47732,117270.0,117260.0,0.06676871]
[1753905880755,0.34,117270.0,117260.0,0.15337802]
[1753905880974,0.34,117270.0,117260.0,0.15124601]
[1753905881193,0.34,117270.0,117260.0,0.15337802]
[1753905881409,0.34,117270.0,117260.0,0.15124601]
[1753905883670,0.13716,117280.0,117270.0,0.0632]
[1753905884114,0.47716,117280.0,117270.0,0.0632]
[1753905884364,0.49402778,117280.0,117270.0,0.0632]
[1753905884599,0.34,117280.0,117270.0,0.0632]
[1753905885988,0.341,117280.0,117270.0,0.0632]
[1753905887305,4.862786,117270.0,117260.0,0.00256871]
[1753905887517,5.34584624,117270.0,117260.0,0.00256871]
[1753905887719,4.9472633,117270.0,117260.0,0.00256871]
[1753905888137,5.0317406,117270.0,117260.0,0.00256871]
[1753905888351,5.43032354,117270.0,117260.0,0.00256871]
[1753905888569,4.9791633,117270.0,117260.0,0.00256871]
[1753905888788,5.34584624,117270.0,117260.0,0.00256871]
[1753905889202,4.9472633,117270.0,117260.0,0.00256871]
[1753905889919,4.9472633,117270.0,117260.0,0.03386871]
[1753905890103,4.9472633,117270.0,117260.0,0.06576871]
[1753905890776,5.0843033,117270.0,117260.0,0.06576871]
[1753905891398,5.0843033,117270.0,117260.0,0.03386871]
[1753905891610,5.1687806,117270.0,117260.0,0.00256871]
[1753905892279,5.56736354,117270.0,117260.0,0.00256871]
[1753905892679,5.1687806,117270.0,117260.0,0.00256871]
[1753905892950,5.0843033,117270.0,117260.0,0.00256871]
[1753905893462,4.9472633,117270.0,117260.0,0.00256871]
[1753905893694,0.2213973,117270.0,117260.0,0.06576871]
[1753905894166,0.13692,117270.0,117260.0,0.06576871]
[1753905896230,0.04486351,117290.0,117280.0,0.0324]
[1753905896460,5.52333316,117290.0,117260.0,0.03456871]
[1753905896664,0.34,117270.0,117260.0,0.03456871]
[1753905896877,0.47672,117270.0,117260.0,0.03456871]
[1753905897092,0.47672,117270.0,117260.0,0.06696871]
[1753905897309,0.34,117270.0,117260.0,0.06696871]
[1753905897566,0.13668,117270.0,117260.0,0.06696871]
[1753905898285,0.18582716,117290.0,117260.0,0.48776096]
[1753905898286,0.5,117280.0,117260.0,0.48776096]
[1753905898529,0.5,117280.0,117260.0,0.48562895]
[1753905898530,0.63664,117280.0,117260.0,0.48562895]
[1753905898762,5.362786,117280.0,117260.0,0.48562895]
[1753905899000,4.862786,117280.0,117270.0,0.0644]
[1753905899236,0.51111777,117290.0,117280.0,0.0644]
[1753905899467,0.50911777,117290.0,117280.0,0.0644]
[1753905899705,0.50811777,117290.0,117280.0,0.0644]
[1753905900384,0.37151777,117290.0,117280.0,0.0644]
[1753905901239,0.13648,117290.0,117280.0,0.0644]
[1753905901677,0.1703681,117290.0,117280.0,0.0644]
[1753905902021,0.5338881,117290.0,117280.0,0.0644]
[1753905902225,0.0338881,117290.0,117280.0,0.0644]
[1753905902456,0.13648,117300.0,117280.0,0.0644]
[1753905902661,4.862786,117290.0,117280.0,0.0644]
[1753905902867,0.63648,117300.0,117290.0,0.0644]
[1753905903078,0.97648,117300.0,117290.0,0.0644]
[1753905903300,0.47648,117300.0,117290.0,0.0644]
[1753905903701,0.34,117300.0,117290.0,0.0644]
[1753905903922,0.34,117300.0,117290.0,0.46138294]
[1753905903923,0.03535229,117300.0,117290.0,0.46138294]
[1753905904133,0.03566046,117340.0,117320.0,0.0628]
[1753905904134,0.04342968,117340.0,117320.0,0.0628]
[1753905904351,0.20407947,117340.0,117330.0,0.0327]
[1753905904552,0.03731101,117340.0,117330.0,0.0628]
[1753905904759,0.16060979,117340.0,117330.0,0.0628]
[1753905905134,5.30139971,117340.0,117310.0,0.0628]
[1753905905334,0.34,117330.0,117320.0,0.0628]
[1753905905542,0.34,117330.0,117320.0,0.54586024]
[1753905905543,0.00798993,117330.0,117320.0,0.54586024]
[1753905905753,0.5,117370.0,117350.0,0.0301]
[1753905905970,0.52396028,117370.0,117350.0,0.42868294]
[1753905906174,0.02396028,117370.0,117360.0,0.42868294]
[1753905906382,0.02396028,117370.0,117360.0,0.0301]
[1753905906583,0.05882077,117370.0,117360.0,0.0301]
[1753905907009,0.02444095,117370.0,117360.0,0.0301]
[1753905907632,0.42302389,117370.0,117340.0,0.0301]
[1753905907846,0.47668,117360.0,117340.0,0.0301]
[1753905908062,0.50063446,117360.0,117340.0,0.0301]
[1753905908273,0.13668,117350.0,117340.0,0.0301]
[1753905908495,0.50063446,117350.0,117340.0,0.0301]
[1753905908944,0.34,117340.0,117330.0,0.0628]
[1753905909144,0.34798094,117340.0,117330.0,0.0628]
[1753905909576,0.3479745,117340.0,117330.0,0.0628]
[1753905909804,0.0079745,117340.0,117330.0,0.0618]
[1753905910011,0.1445745,117340.0,117330.0,0.0618]
[1753905910217,0.1445745,117340.0,117320.0,0.0327]
[1753905910432,0.1445745,117340.0,117330.0,0.002]
[1753905910654,0.4845745,117340.0,117330.0,0.002]
[1753905910862,0.34,117330.0,117320.0,0.0327]
[1753905911070,0.34,117330.0,117310.0,0.0327]
[1753905911701,0.1366,117340.0,117300.0,0.40071422]
[1753905911914,5.202786,117330.0,117320.0,0.0327]
[1753905912115,0.34,117330.0,117320.0,0.03274871]
[1753905912565,0.34,117330.0,117320.0,4.871e-05]
[1753905912798,5.339506,117330.0,117320.0,4.871e-05]
[1753905913003,5.98907865,117330.0,117320.0,4.871e-05]
[1753905913213,5.76095509,117330.0,117320.0,4.871e-05]
[1753905913420,6.15953803,117330.0,117320.0,4.871e-05]
[1753905913655,6.15953803,117330.0,117320.0,0.00104871]
[1753905913882,6.1424929,117330.0,117320.0,0.00104871]
[1753905914109,6.2081929,117330.0,117320.0,4.871e-05]
[1753905914300,6.22053428,117330.0,117320.0,4.871e-05]
[1753905914524,5.61026907,117330.0,117320.0,4.871e-05]
[1753905914753,5.98637439,117330.0,117320.0,4.871e-05]
[1753905915007,5.99489692,117330.0,117320.0,4.871e-05]
[1753905915220,5.75582029,117330.0,117320.0,4.871e-05]
[1753905915442,5.22509999,117330.0,117320.0,4.871e-05]
[1753905915663,5.341026,117330.0,117320.0,4.871e-05]
[1753905915882,5.342026,117330.0,117320.0,4.871e-05]
[1753905916345,5.341026,117330.0,117320.0,4.871e-05]
[1753905916557,5.4245033,117330.0,117320.0,4.871e-05]
[1753905917211,5.90740354,117330.0,117320.0,4.871e-05]
[1753905917420,5.91537604,117330.0,117320.0,4.871e-05]
[1753905917625,5.5167931,117330.0,117320.0,4.871e-05]
[1753905917899,5.3797131,117330.0,117320.0,4.871e-05]
[1753905918107,5.2872633,117330.0,117320.0,4.871e-05]
[1753905918734,5.339866,117330.0,117320.0,0.06244871]
[1753905919381,4.999866,117330.0,117320.0,0.06244871]
[1753905919592,4.999866,117330.0,117320.0,0.46103165]
[1753905919805,0.13708,117330.0,117320.0,0.06244871]
[1753905920023,0.13708,117350.0,117340.0,0.0624]
[1753905920253,0.5,117340.0,117330.0,0.0624]
[1753905920469,5.202786,117340.0,117330.0,0.0624]
[1753905920658,0.34,117340.0,117330.0,0.0624]
[1753905921299,0.47704,117340.0,117330.0,0.0624]
[1753905922113,0.34,117340.0,117330.0,0.0624]
[1753905922553,0.47696,117340.0,117330.0,0.0624]
[1753905923381,0.34,117340.0,117330.0,0.0624]
[1753905925246,0.34,117330.0,117320.0,0.06244871]
[1753905925887,0.34,117330.0,117320.0,0.46103165]
[1753905926325,0.13696,117340.0,117330.0,0.0624]
[1753905926761,4.862786,117350.0,117320.0,4.871e-05]
[1753905926971,0.13684,117340.0,117330.0,0.0624]
[1753905927189,0.01899709,117340.0,117320.0,4.871e-05]
[1753905927407,4.862786,117330.0,117320.0,0.00204871]
[1753905927624,4.862786,117330.0,117320.0,4.871e-05]
[1753905928547,0.0844773,117330.0,117320.0,4.871e-05]
[1753905928689,5.70289137,117330.0,117320.0,4.871e-05]
[1753905928902,5.7028913,117330.0,117320.0,4.871e-05]
[1753905929125,5.79589142,117330.0,117320.0,4.871e-05]
[1753905929313,6.03587369,117330.0,117320.0,4.871e-05]
[1753905929723,5.839846,117330.0,117320.0,4.871e-05]
[1753905930154,5.4022406,117330.0,117320.0,4.871e-05]
[1753905930399,5.4241033,117330.0,117320.0,4.871e-05]
[1753905930691,5.4251033,117330.0,117320.0,4.871e-05]
[1753905931321,5.4261033,117330.0,117320.0,4.871e-05]
[1753905931537,5.44114821,117330.0,117320.0,4.871e-05]
[1753905933285,4.862786,117330.0,117320.0,0.06244871]
[1753905933507,0.1368,117330.0,117320.0,0.06244871]
[1753905933727,0.01334036,117340.0,117330.0,0.0624]
[1753905933728,0.51334036,117340.0,117330.0,0.0624]
[1753905933965,0.20488,117350.0,117340.0,0.0624]
[1753905933966,0.1368,117350.0,117340.0,0.0624]
[1753905934426,0.48477655,117350.0,117340.0,0.0624]
[1753905934882,5.09203985,117350.0,117330.0,0.0624]
[1753905935086,4.862786,117340.0,117330.0,0.0624]
[1753905935298,0.34,117340.0,117330.0,0.0624]
[1753905935528,4.862786,117340.0,117330.0,0.0624]
[1753905935739,0.34,117340.0,117330.0,0.0624]
[1753905936590,0.47688,117340.0,117330.0,0.0624]
[1753905937023,0.47688,117340.0,117330.0,0.0634]
[1753905937435,0.34,117340.0,117330.0,0.0634]
[1753905937639,0.47688,117340.0,117330.0,0.0634]
[1753905937852,0.47688,117340.0,117330.0,0.0654]
[1753905938265,0.93159867,117340.0,117330.0,0.003]
[1753905938472,5.87886197,117340.0,117330.0,0.003]
[1753905938884,5.90434766,117340.0,117330.0,0.003]
[1753905939351,5.90434759,117340.0,117330.0,0.003]
[1753905939527,5.89582557,117340.0,117330.0,0.003]
[1753905939737,6.07479245,117340.0,117330.0,0.003]
[1753905939951,6.08372011,117340.0,117330.0,0.002]
[1753905940169,6.09169377,117340.0,117330.0,0.002]
[1753905940382,6.08317175,117340.0,117330.0,0.002]
[1753905940630,5.202786,117330.0,117320.0,4.871e-05]
[1753905940835,5.77032354,117330.0,117320.0,4.871e-05]
[1753905941044,5.77884592,117330.0,117320.0,4.871e-05]
[1753905941248,5.78736838,117330.0,117320.0,4.871e-05]
[1753905941455,5.77032354,117330.0,117320.0,4.871e-05]
[1753905941663,5.77884592,117330.0,117320.0,4.871e-05]
[1753905942046,5.77032354,117330.0,117320.0,4.871e-05]
[1753905942828,5.3717406,117330.0,117320.0,4.871e-05]
[1753905943552,0.34,117330.0,117320.0,0.06244871]
[1753905943776,0.13656,117330.0,117320.0,0.06244871]
[1753905943989,0.13656,117330.0,117320.0,4.871e-05]
[1753905943990,5.339346,117330.0,117320.0,4.871e-05]
[1753905944633,5.4238233,117330.0,117320.0,4.871e-05]
[1753905944830,5.5083006,117330.0,117320.0,4.871e-05]
[1753905945037,5.3717406,117330.0,117320.0,4.871e-05]
[1753905945255,5.94994015,117330.0,117320.0,0.00104871]
[1753905945455,6.01946355,117330.0,117320.0,0.00104871]
[1753905945658,5.53435193,117330.0,117320.0,4.871e-05]
[1753905945862,5.43242561,117330.0,117320.0,4.871e-05]
[1753905946079,5.4239033,117330.0,117320.0,4.871e-05]
[1753905946922,5.339426,117330.0,117320.0,0.06244871]
[1753905947392,5.4239033,117330.0,117320.0,0.06244871]
[1753905947806,5.4259033,117330.0,117320.0,0.06244871]
[1753905948009,5.4239033,117330.0,117320.0,0.06244871]
[1753905948246,5.77032354,117330.0,117320.0,4.871e-05]
[1753905948455,5.90688354,117330.0,117320.0,4.871e-05]
[1753905949077,5.90788354,117330.0,117320.0,4.871e-05]
[1753905949276,0.6465146,117330.0,117320.0,4.871e-05]
[1753905949490,5.1683006,117330.0,117320.0,4.871e-05]
[1753905949878,5.56688354,117330.0,117320.0,4.871e-05]
[1753905950089,5.0838233,117330.0,117320.0,4.871e-05]
[1753905950291,5.0838233,117330.0,117320.0,0.06464871]
[1753905950500,4.999346,117330.0,117320.0,0.06464871]
[1753905950728,0.13656,117330.0,117320.0,0.06464871]
[1753905951778,5.362786,117340.0,117330.0,0.0646]
[1753905952000,0.13648,117340.0,117330.0,0.39858294]
[1753905952197,0.13648,117340.0,117320.0,0.48310895]
[1753905952732,0.13648,117340.0,117330.0,0.0646]
[1753905953337,0.13648,117340.0,117330.0,0.0656]
[1753905953526,0.13648,117350.0,117330.0,0.001]
[1753905953741,0.13648,117350.0,117340.0,0.0646]
[1753905954254,0.47648,117350.0,117340.0,0.0646]